Cogmind - Beta 13 @@@ ROGUE MODE // 2024.04.04 @ 19:01:59 Player: ChromeKnight Result: Destroyed by DY-K84(R) with Subdweller Beam Cannon Performance ------------- Evolutions (0) 0 Regions Visited (3) 600 Robots Destroyed (24) 120 Value Destroyed (582) 582 Prototype IDs (0) 0 Alien Tech Used (0) 0 Bonus (0) 0 TOTAL SCORE: 1302 Bonus ------- None Cogmind --------- Core Integrity 0/250 Matter 49/300 Energy 100/100 System Corruption 0% Temperature Cool (9) Movement Walking (120) Location -10/Subcaves Parts ------- > --- POWER (1) -------- (None) > --- PROPULSION (2) --- Aluminum Leg > --- UTILITY (2) ------ Machine Analyzer > --- WEAPON (2) ------- Bore Cannon > --- INVENTORY (5) ---- Small Storage Unit Small Laser Peak State ------------ > --- POWER ------------ Ion Engine > --- PROPULSION ------- Aluminum Leg Aluminum Leg > --- UTILITY ---------- Machine Analyzer Light Armor Plating > --- WEAPON ----------- Bore Cannon > --- INVENTORY -------- Aluminum Leg Small Storage Unit Small Laser [Rating: 12] Favorites ----------- Power Ion Engine Engine Ion Engine Power Core Light Nuclear Core Propulsion Aluminum Leg Leg Aluminum Leg Utility Small Storage Unit Device Heat Sink Storage Small Storage Unit Processor Machine Analyzer Protection Light Armor Plating Weapon Small Laser Energy Gun Small Laser Ballistic Cannon Bore Cannon Build | -11 -10 -10 -10 ------- Run | Yrd Mat Min Sub Slots Evolved . | . . . . Power . | . . . . Propulsion . | . . . . Utility . | . . . . Weapon . | . . . . Parts Attached 23 | 6 5 8 4 Power 4 | 1 1 2 . Engine 3 | 1 1 1 . Core 1 | . . 1 . Reactor . | . . . . Propulsion 8 | 2 2 3 1 Treads . | . . . . Leg 8 | 2 2 3 1 Wheel . | . . . . Hover . | . . . . Flight . | . . . . Utility 4 | 1 1 . 2 Device 1 | . 1 . . Storage 1 | 1 . . . Processor 1 | . . . 1 Hackware . | . . . . Protection 1 | . . . 1 Artifact . | . . . . Weapon 7 | 2 1 3 1 Energy Gun 6 | 2 1 3 . Energy Cannon . | . . . . Ballistic Gun . | . . . . Ballistic Cannon 1 | . . . 1 Launcher . | . . . . Special Weapon . | . . . . Impact Weapon . | . . . . Slashing Weapon . | . . . . Piercing Weapon . | . . . . Special Melee Weapon . | . . . . Unidentified Prototypes . | . . . . Parts Lost 6 | . . 2 4 Power 2 | . . 1 1 Propulsion 3 | . . 1 2 Utility 1 | . . . 1 Weapon . | . . . . Highest Loss Streak 4 | . . 2 4 To Critical Strikes . | . . . . Average Slot Usage (%) 96 | . 96 99 83 Engine 12 | . 14 11 13 Core 1 | . . 2 . Leg 27 | . 28 28 27 Device 10 | . 10 14 . Storage 12 | . 14 14 2 Processor 1 | . . . 11 Protection 1 | . . . 12 Energy Gun 24 | . 28 28 1 Ballistic Cannon 1 | . . . 13 Naked Turns . | . . . . Heaviest Build 22 | 13 14 14 22 Greatest Support 20 | 20 20 20 20 Greatest Overweight (x) 1 | 1 . . 1 Average Overweight (x) . | . . . . Largest Inventory Capacity 8 | 8 8 8 8 Average Capacity 7 | 7 8 8 5 Most Carried 8 | 4 8 8 7 Average Carried 6 | 2 6 7 3 Final Capacity 8 | 8 8 8 5 Final Carried 8 | 4 8 7 2 Class Distribution -------------------- 50% | Scavenger-Mutant 49% | Mutant Dominant Class ---------------- Mutant | -10/Materials Scavenger-Mutant | -10/Mines Scavenger-Mutant | -10/Subcaves Resources | -11 -10 -10 -10 ----------- Run | Yrd Mat Min Sub Matter Collected 416 | 260 40 55 61 Remotely . | . . . . Salvage Created 743 | 127 348 242 26 Parts 41 | 9 14 15 3 Haulers Intercepted . | . . . . Recyclers Shooed 5 | 1 2 2 . Parts Field Recycled . | . . . . Retrieved Matter . | . . . . Parts Self-Destructed 4 | . . . 4 Prevented . | . . . . Kills | -11 -10 -10 -10 ------- Run | Yrd Mat Min Sub Combat Hostiles Destroyed 15 | . 7 7 1 Guns 13 | . 6 7 . Cannons 1 | . . . 1 Classes Destroyed 8 | 2 4 1 1 Tunneler 5 | 4 . 1 . Recycler 1 | 1 . . . Mechanic 1 | . 1 . . Operator 1 | . 1 . . Watcher 1 | . 1 . . Swarmer 3 | . . 3 . Grunt 11 | . 7 4 . Subdweller 1 | . . . 1 Best Kill Streak 5 | 5 2 3 1 Combat Bots Only 3 | . 2 3 1 Max Kills in Single Turn 1 | 1 1 1 1 Gunslinging . | . . . . Exploded . | . . . . Melee . | . . . . Uniques/NPCs Destroyed . | . . . . Combat | -11 -10 -10 -10 -------- Run | Yrd Mat Min Sub Hostile Shots Fired 104 | . 37 38 29 Missed 32 | . 8 11 13 Damage Taken 1245 | . 361 348 536 Core 254 | . 116 77 61 Absorbed by Shields . | . . . . Core Remaining (%) 100 | 100 . . . Volleys Fired 117 | 7 45 27 38 Largest 2 | 2 2 2 1 Hottest 90 | 90 90 90 57 Shots Fired 196 | 14 90 54 38 Gun 158 | 14 90 54 . Cannon 38 | . . . 38 Launcher . | . . . . Special . | . . . . Kinetic 38 | . . . 38 Thermal 158 | 14 90 54 . Explosive . | . . . . Electromagnetic . | . . . . Robot Hit Streak 11 | 4 11 11 3 Robot Miss Streak 4 | 1 3 3 4 Penetration Max . | . . . . Secondary Targets . | . . . . Shots Hit Robots 114 | 9 58 37 10 Core Hits 45 | 6 22 15 2 Critical Kills 1 | . . . 1 Critical Parts Destroyed . | . . . . Critical Strikes 9 | 1 2 2 4 Burn 5 | 1 2 2 . Destroy 4 | . . . 4 Melee Attacks . | . . . . Impact . | . . . . Slashing . | . . . . Piercing . | . . . . Sneak Attacks . | . . . . Combat Hostiles . | . . . . Follow-up Attacks . | . . . . Damage Inflicted 1408 | 106 680 425 197 Guns 1211 | 106 680 425 . Cannons 194 | . . . 194 Explosions . | . . . . Melee . | . . . . Ramming 3 | . . . 3 Kinetic 194 | . . . 194 Thermal 1211 | 106 680 425 . Explosive . | . . . . Electromagnetic . | . . . . Impact . | . . . . Slashing . | . . . . Piercing . | . . . . Highest Corruption . | . . . . Average Corruption . | . . . . Corruption Purged . | . . . . Corruption Blocked . | . . . . Overload Shots . | . . . . Overflow Damage . | . . . . Projectiles . | . . . . Explosions . | . . . . Melee . | . . . . Knockbacks 1 | . . . 1 Impact . | . . . . Kinetic 1 | . . . 1 Secondary . | . . . . Self-Inflicted Damage . | . . . . Shots . | . . . . Rammed . | . . . . Targets Rammed 1 | . . . 1 Kicked 1 | . . . 1 Crushed . | . . . . Highest Temperature 186 | 90 186 84 . Average Temperature 46 | 38 54 37 . Received Heat Transfer 477 | . 231 192 54 Siege Activations . | . . . . Robots Corrupted . | . . . . Combat Hostiles . | . . . . Parts Fried . | . . . . Impact Corruptions . | . . . . Robots Melted 1 | . 1 . . Combat Hostiles 1 | . 1 . . Parts Melted 12 | 1 5 6 . Heat Transferred 3568 | 359 1933 1276 . Parts Sabotaged . | . . . . Parts Stolen . | . . . . Parts Stripped . | . . . . Power Chain Reactions . | . . . . Alert | -11 -10 -10 -10 ------- Run | Yrd Mat Min Sub Peak Influence 243 | 25 243 204 . Initial 49 | . 16 49 . Average 91 | 9 115 83 . Maximum Alert Level 1 | . 1 1 . Low Security (%) 86 | 100 80 89 . Level 1 13 | . 19 10 . Level 2 . | . . . . Level 3 . | . . . . Level 4 . | . . . . Level 5 . | . . . . High Security . | . . . . Max Security . | . . . . Squads Dispatched 2 | . 2 . . Investigation 1 | . 1 . . Extermination . | . . . . Reinforcement 1 | . 1 . . Assault . | . . . . Garrison . | . . . . Intercept . | . . . . Searches Triggered . | . . . . Construction Impeded . | . . . . Haulers Reinforced . | . . . . Active Scanning Responses . | . . . . Cargo Convoy Interrupts . | . . . . Stealth | -11 -10 -10 -10 --------- Run | Yrd Mat Min Sub Distress Signals 2 | . 2 . . Communications Jammed . | . . . . Distress Signals . | . . . . Times Spotted 27 | . 16 7 4 Peak Tracking Total 4 | . 4 3 2 Tactical Retreats 1 | . 1 . . Traps | -11 -10 -10 -10 ------- Run | Yrd Mat Min Sub Traps Triggered 4 | . 1 . 3 Indirectly . | . . . . Trap Hack Attempts . | . . . . Triggered . | . . . . Disarmed . | . . . . Reprogrammed . | . . . . Reused . | . . . . Traps Extracted . | . . . . Installed . | . . . . Triggered . | . . . . Machines | -11 -10 -10 -10 ---------- Run | Yrd Mat Min Sub Machines Disabled . | . . . . Max in Single Turn . | . . . . Machines Repaired . | . . . . Machines Dismantled . | . . . . Machines Sabotaged . | . . . . Overloaded Fab Kills . | . . . . Hacking | -11 -10 -10 -10 --------- Run | Yrd Mat Min Sub Machines Accessed 1 | . 1 . . Terminals 1 | . 1 . . Fabricators . | . . . . Repair Stations . | . . . . Recycling Units . | . . . . Scanalyzers . | . . . . Garrison Access . | . . . . Total Hacks 3 | . 3 . . Successful 1 | . 1 . . Failed 2 | . 2 . . Catastrophic . | . . . . Database Lockouts . | . . . . Manual 2 | . 2 . . Terminals 3 | . 3 . . Fabricators . | . . . . Repair Stations . | . . . . Recycling Units . | . . . . Scanalyzers . | . . . . Garrison Access . | . . . . Terminal Hacks 1 | . 1 . . Hauler Manifests 1 | . 1 . . Fabricator Hacks . | . . . . Repair Station Hacks . | . . . . Recycling Unit Hacks . | . . . . Scanalyzer . | . . . . Garrison Access Hacks . | . . . . Unauthorized Hacks . | . . . . Terminals . | . . . . Fabricators . | . . . . Repair Stations . | . . . . Recycling Units . | . . . . Scanalyzers . | . . . . Garrison Access . | . . . . Data Cores Recovered . | . . . . Used . | . . . . Hacking Detections 1 | . 1 . . Full Trace Events . | . . . . Feedback Events . | . . . . Feedback Blocked . | . . . . Robot Schematics Acquired . | . . . . Robots Built . | . . . . Authchips . | . . . . Time . | . . . . Total Robot Build Rating . | . . . . Part Schematics Acquired . | . . . . Parts Built . | . . . . Authchips . | . . . . Time . | . . . . Total Part Build Rating . | . . . . Parts Repaired . | . . . . Time . | . . . . Parts Recycled . | . . . . Recycled Matter . | . . . . Retrieved Matter . | . . . . Retrieved Components . | . . . . Parts Scanalyzed . | . . . . Part Schematics Acquired . | . . . . Parts Damaged . | . . . . Bothacking | -11 -10 -10 -10 ------------ Run | Yrd Mat Min Sub Used RIF Installer . | . . . . Robots Hacked . | . . . . Non-combat . | . . . . Combat . | . . . . Robot Hacks Applied . | . . . . Relay Couplers Released . | . . . . Fabnet Peak Effective % . | . . . . Robots Rewired . | . . . . Allies Hacked . | . . . . Hacks Repelled . | . . . . Allies | -11 -10 -10 -10 -------- Run | Yrd Mat Min Sub Total Allies . | . . . . Largest Group . | . . . . Highest-Rated Group . | . . . . Highest-Rated Ally . | . . . . Total Orders . | . . . . Ally Attacks . | . . . . Total Damage . | . . . . Kills . | . . . . Allies Corrupted . | . . . . Allies Melted . | . . . . Intel | -11 -10 -10 -10 ------- Run | Yrd Mat Min Sub Robot Analysis Total . | . . . . Derelict Logs Recovered 2 | . . 2 . Drone Launches . | . . . . Drone Recoveries . | . . . . Exploration | -11 -10 -10 -10 ------------- Run | Yrd Mat Min Sub Turns Passed 1908 | 133 701 834 240 Spaces Moved 942 | 92 414 337 99 Core 17 | 17 . . . Treads . | . . . . Legs 925 | 75 414 337 99 Wheels . | . . . . Hover . | . . . . Flight . | . . . . Fastest Speed 50 | 50 120 120 120 Average Speed 119 | 108 120 120 122 Slowest Speed 190 | 120 120 120 190 Overloaded Moves . | . . . . Propulsion Burnouts . | . . . . Robots Hopped . | . . . . Cave-ins Triggered . | . . . . Exploration Rate (%) 31 | 4 59 57 7 Regions Visited 3 Branch Regions 2 Pre-discovered Areas . | . . . . Known Exits Taken . | . . . . Unknown Exits Taken 3 | 1 1 1 . Scrap Searched 1 | . . 1 . Spaces Dug 15 | . . . 15 Terrain Destroyed 31 | . . . 31 Melee . | . . . . Projectile 31 | . . . 31 AOE . | . . . . Terrain Rammed . | . . . . Walls Destroyed . | . . . . Machines Disabled . | . . . . Actions | -11 -10 -10 -10 --------- Run | Yrd Mat Min Sub Total 1526 | 108 527 712 179 Wait 418 | . 54 333 31 Move 939 | 91 413 336 99 Hop . | . . . . Pick Up 13 | 4 6 3 . Fast Attach 8 | 6 1 1 . Attach 6 | . . 2 4 Detach 1 | . . . 1 Swap 9 | . 4 5 . Drop 14 | . 4 5 5 Fire 117 | 7 45 27 38 Melee . | . . . . Ram . | . . . . Kick 1 | . . . 1 Crush . | . . . . Escape Stasis . | . . . . Rewire . | . . . . Trap . | . . . . Miscellaneous . | . . . . Route ------- -11/Scrapyard -10/Materials (discovered 2 exits: [*Mat] / [*Min]) -10/Mines (discovered 3 exits: [*Mat x2] / [*Sub]) -10/Subcaves History --------- Turn | Location | Event 5 | -11/Scrapyard | Discovered new exit (range 16) 134 | -11/Scrapyard | Entered Materials 319 | -10/Materials | Build established: Mutant 512 | -10/Materials | Discovered new exit (range 14) 826 | -10/Materials | Discovered new exit (range 8) 835 | -10/Materials | Entered Mines 844 | -10/Mines | Core integrity fell below 50% 895 | -10/Mines | Discovered new exit (range 9) 936 | -10/Mines | Learned 4 Materials zone layouts 949 | -10/Mines | Discovered new exit (range 10) 1059 | -10/Mines | Learned Materials terminal intel 1235 | -10/Mines | A weapon hastily lodged in a ceiling crevice suddenly fell to the ground 1339 | -10/Mines | Build established: Scavenger-Mutant 1570 | -10/Mines | Discovered new exit (range 5) 1669 | -10/Mines | Entered Subcaves 1809 | -10/Subcaves | Ambushed by Subdweller buried in earth 1810 | -10/Subcaves | Core integrity fell below 20% 1909 | -10/Subcaves | Destroyed by DY-K84(R) with Subdweller Beam Cannon Last Messages --------------- 01865_ Triggered Piercing Trap. 01865_ Spikes shoot up from the floor. 01876_ HV Slug penetrates Wall. 01878_ Aluminum Leg destroyed. 01878_ HV Slug penetrates EA-ED0(R). 01880_ EX-BUS(R) destroyed. 01881_ EA-ED0(R) knocked back. 01883_ HV Slug penetrates EA-ED0(R). 01884_ EA-ED0(R) affixes Scrap Shield Fragment to Scrap Shield. 01885_ HV Slug penetrates Wall. 01893_ Lgt. Armor Plating destroyed. 01893_ EA-ED0(R) suffers critical hit (Destroy). 01895_ HV Slug penetrates Wall. 01896_ DY-K84(R): "ARGHSUB!" 01899_ Ion Engine destroyed. 01906_ 5L-WRP(u) builds Twisted Machinery. 01908_ Kicked EA-ED0(R) out of the way. 01909_ Acquired 35 matter. 01909_ Aluminum Leg destroyed. Map ----- +----------------------------------------------------+ | ???# ![#??###????????????# #??????????????????? | | ???##! &##?# ????????????# ##?????????????????? | | ????# & #?# ????????????# [ !#?????????????????? | | ????## ##?# ????????????# [=#?????????????????? | | ????# #?? ##??????????# ##?????????????????? | | ????## #?? #?????????## #??????????????????? | | ????## ##? #???????### #??????????????????? | | ????# ##? ##????### #??????????????????? | | ????## ##? ##???# ##?###??????????????? | | ?????### #?# ##??## #### ##?????????????? | | ???????## ### ###?## ### #?????????????? | | ????????# #??### #??????????????? | | ????????# #???# ##??????????????? | | ????????#^ ##??## ## ##???????????????? | | ????????# #### ####????????????????? | | ????????# ## # #???????????????????? | | ????????## ##???????????????????? | | ?????????## #????????????????????? | | ?????????## ^ #### ##????????????????????? | | ?????????# ###??#####?????????????????????? | | ?????????# ^###????????????????????????????? | | ?????????# ;#####??###???????????????????? | | ?????????## ;# ### ##??????????????????? | | ??????????# ;# ; ##?????????????????? | | ??????????## ;;; #?????????????????? | | ???????????##;; /@R %;#?????????????????? | | ???????????# ; R ;# #???????????????? | | ???????????## ;; ; % ##??????????????????? | | ????????????## ;;; ;;;;;; u#??????????????????? | | ?????????????###### ###### #"#?????????????????? | | ??????????????????###????? #?#?????????????????? | | ?????????????????????????? ##???????????????????? | | ?????????????????????????? ????????????????????? | | ?????????????????????????? "#???????????????????? | | ??????????????????????????""""???????????????????? | | ??????????????????????????"" ???????????????????? | | ??????????????????????????" ???????????????????? | | ????????????????????????????""???????????????????? | | ?????????????????????????????????????????????????? | | ?????????????????????????????????????????????????? | | ?????????????????????????????????????????????????? | | ?????????????????????????????????????????????????? | | ?????????????????????????????????????????????????? | | ?????????????????????????????????????????????????? | | ?????????????????????????????????????????????????? | | ?????????????????????????????????????????????????? | | ?????????????????????????????????????????????????? | | ?????????????????????????????????????????????????? | | ?????????????????????????????????????????????????? | | ?????????????????????????????????????????????????? | +----------------------------------------------------+ Best States ------------- Heat Dissipation 35 Energy Generation 14 Energy Capacity 250 Matter Stores 300 Matter Capacity 300 Sight Range 16 Terrain Scan Density 10 Armor Coverage 150 Evasion (%) 55 Item Schematics ----------------- None Robot Schematics ------------------ None Fabricated ------------ Nothing Alien Tech Used ----------------- None Achievements -------------- None Challenges ------------ None Game ------ Seed LargeBarrageSlayer Manual? 0 Play Time 00:09:19 Cumulative 449.5 hours Start 2024.04.04 @ 18:53:44 End 2024.04.04 @ 19:01:59 Sessions 1 Manual Loads 0 Difficulty Rogue Special Mode None Game No. 776 Rogue 621 Adventurer 148 Explorer 7 Win Type - Total 20 Types 16/1/2/1/0/0/0/0/0 Lore% 77 Gallery% 89 Achievement% 74 Wizard Run 0 Options --------- Layout 1 ASCII 0 Keyboard 0 Movement Numpad Keybinds 0 Fullscreen 2 Font 24/Smallcaps Map View 50x35 Zoom Use 0% Tactical HUD 1 Map Filters NONE Filters NONE Steam 1 RUN: 9539cc7c-e267-48f6-9410-f442e5a6217b